fUST/lending_fUST_20250320
["ID","MTS","AMOUNT","RATE_DAILY","PERIOD"]
[356448901,1742461887388,-633.39,0.00033972,21]
[356448902,1742461887397,-500.0,0.00033972,21]
[356448903,1742461887406,-619.13,0.00033972,21]
[356448904,1742461887416,-500.0,0.00033972,21]
[356448905,1742461887425,-4514.15,0.00033972,21]
[356448906,1742461887435,-500.0,0.00033972,21]
[356448907,1742461887444,-1875.2,0.00033972,21]
[356448908,1742461887454,-561.69805482,0.00033972,21]
[356448909,1742461887464,-564.72595228,0.00033972,21]
[356448910,1742461887473,-480.24183467,0.00033972,21]
[356448911,1742461887482,-500.0,0.00033972,21]
[356448912,1742461887492,-2511.45,0.00033972,21]
[356448913,1742461887501,-2083.42,0.00033972,21]
[356448914,1742461887511,-500.0,0.00033972,21]
[356448915,1742461887521,-802.76,0.00033972,21]
[356448916,1742461887530,-500.0,0.00033972,21]
[356448917,1742461887539,-894.41,0.00033972,21]
[356448918,1742461887548,-43428.33,0.00033972,21]
[356448919,1742461887555,-789.64,0.00033972,21]
[356448920,1742461887563,-500.0,0.00033972,21]
[356448921,1742461887573,-1166.99,0.00033972,21]
[356448922,1742461887582,-2100.8,0.00033972,21]
[356448923,1742461887590,-500.0,0.00033972,21]
[356448924,1742461887598,-515.6195274,0.00033972,21]
[356448925,1742461887606,-500.0,0.00033972,21]
[356448926,1742461887615,-5569.78,0.00033972,21]
[356448927,1742461887625,-500.0,0.00033972,21]
[356448928,1742461887634,-500.0,0.00033972,21]
[356448929,1742461887643,-500.0,0.00033972,21]
[356448930,1742461887653,-982.83,0.00033972,21]
[356448931,1742461887662,-1203.67,0.00033972,21]
[356448932,1742461887671,-500.0,0.00033972,21]
[356448933,1742461887681,-512.04,0.00033972,21]
[356448934,1742461887691,-500.0,0.00033972,21]
[356448935,1742461887701,-500.0,0.00033972,21]
[356448936,1742461887711,-500.0,0.00033972,21]
[356448937,1742461887719,-1674.92,0.00033972,21]
[356448938,1742461887732,-1096.74,0.00033972,21]
[356448939,1742461887742,-529.82919529,0.00033972,21]
[356448940,1742461887753,-500.0,0.00033972,21]
[356448941,1742461887762,-500.0,0.00033972,21]
[356448942,1742461887771,-916.01,0.00033972,21]
[356448943,1742461887780,-500.0,0.00033972,21]
[356448944,1742461887789,-500.0,0.00033972,21]
[356448945,1742461887799,-500.0,0.00033972,21]
[356448946,1742461887810,-500.0,0.00033972,21]
[356448947,1742461887819,-500.0,0.00033972,21]
[356448948,1742461887828,-518.70194123,0.00033972,21]
[356448949,1742461887838,-500.0,0.00033972,21]
[356448950,1742461887848,-509.9,0.00033972,21]
[356448951,1742461887858,-628.04,0.00033972,21]
[356448952,1742461887867,-29745.15,0.00033972,21]
[356448953,1742461887876,-858.18,0.00033972,21]
[356448954,1742461887884,-500.0,0.00033972,21]
[356448955,1742461887893,-500.0,0.00033972,21]
[356448956,1742461887901,-500.0,0.00033972,21]
[356448957,1742461887909,-895.78,0.00033972,21]
[356448958,1742461887917,-500.0,0.00033972,21]
[356448959,1742461887925,-20512.22,0.00033972,21]
[356448960,1742461887933,-713.19,0.00033972,21]
[356448961,1742461887941,-500.0,0.00033972,21]
[356448962,1742461888128,-568.8,0.00033972,21]
[356448963,1742461888138,-500.0,0.00033972,21]
[356448964,1742461888147,-1685.96,0.00033972,21]
[356448965,1742461888158,-1429.05,0.00033972,21]
[356448966,1742461888167,-500.0,0.00033972,21]
[356448967,1742461888177,-500.0,0.00033972,5]
[356448968,1742461888187,-14238.95,0.00033972,21]
[356448969,1742461888197,-1361.5,0.00033972,21]
[356448970,1742461888206,-616.78,0.00033972,21]
[356448971,1742461888215,-500.0,0.00033972,21]
[356448972,1742461888224,-500.0,0.00033972,21]
[356448973,1742461888234,-1513.81,0.00033972,21]
[356448974,1742461888243,-528.07756773,0.00033972,21]
[356448975,1742461888252,-813.05,0.00033972,21]
[356448976,1742461888262,-500.0,0.00033972,21]
[356448977,1742461888271,-500.0,0.00033972,21]
[356448978,1742461888281,-1329.65,0.00033972,21]
[356448979,1742461888290,-4411.74,0.00033972,21]
[356448980,1742461888299,-29088.67,0.00033972,21]
[356448981,1742461888309,-500.0,0.00033972,21]
[356448982,1742461888318,-1213.41,0.00033972,21]
[356448983,1742461888328,-3019.51,0.00033972,21]
[356448984,1742461888338,-2345.85,0.00033972,21]
[356448985,1742461888347,-2144.99,0.00033972,21]
[356448986,1742461888357,-500.0,0.00033972,21]
[356448987,1742461888366,-500.0,0.00033972,21]
[356448988,1742461888376,-595.54,0.00033972,21]
[356448989,1742461888385,-858.07,0.00033972,21]
[356448990,1742461888395,-500.0,0.00033972,21]
[356448991,1742461888404,-500.0,0.00033972,21]
[356448992,1742461888414,-1338.74,0.00033972,21]
[356448993,1742461888423,-3639.61,0.00033972,21]
[356448994,1742461888434,-2885.85,0.00033972,21]
[356448995,1742461888446,-1145.34,0.00033972,21]
[356448996,1742461888456,-4768.03,0.00033972,21]
[356448997,1742461888465,-4146.59,0.00033972,21]
[356448998,1742461888476,-4197.92,0.00033972,21]
[356448999,1742461888489,-500.0,0.00033972,21]
[356449000,1742461888499,-500.0,0.00033972,21]
[356449001,1742461888508,-500.0,0.00033972,21]
[356449002,1742461888518,-1880.89,0.00033972,21]
[356449003,1742461888528,-500.0,0.00033972,21]
[356449004,1742461888537,-500.0,0.00033972,21]
[356449005,1742461888546,-2431.4,0.00033972,21]
[356449006,1742461888556,-854.97,0.00033972,21]
[356449007,1742461888565,-1393.06,0.00033972,21]
[356449008,1742461888574,-500.0,0.00033972,21]
[356449009,1742461888583,-2356.21,0.00033972,21]
[356449010,1742461888593,-1379.3,0.00033972,21]
[356449011,1742461888602,-500.0,0.00033972,21]
[356449012,1742461888614,-7598.17,0.00033972,21]
[356449013,1742461888627,-500.0,0.00033972,21]
[356449014,1742461888637,-500.0,0.00033972,21]
[356449015,1742461888648,-500.0,0.00033972,21]
[356449016,1742461888657,-500.0,0.00033972,21]
[356449017,1742461888666,-500.0,0.00033972,21]
[356449018,1742461888676,-721.68,0.00033972,21]
[356449019,1742461888685,-500.0,0.00033972,21]
[356449020,1742461888694,-5457.08,0.00033972,21]
[356449021,1742461888703,-2123.07,0.00033972,21]
[356449022,1742461888713,-535.08863834,0.00033972,21]
[356449023,1742461888723,-2230.49,0.00033972,21]
[356449024,1742461888737,-1123.42,0.00033972,21]
[356449025,1742461888747,-1336.49,0.00033972,21]
[356449026,1742461888756,-500.0,0.00033972,21]
[356449027,1742461888765,-500.0,0.00033972,21]
[356449028,1742461888775,-1332.88,0.00033972,21]
[356449029,1742461888783,-500.0,0.00033972,21]
[356449030,1742461888791,-500.0,0.00033972,21]
[356449031,1742461888799,-2478.09,0.00033972,21]
[356449032,1742461888807,-17110.58,0.00033972,21]
[356449033,1742461888816,-500.0,0.00033972,21]
[356449034,1742461888823,-1435.35,0.00033972,21]
[356449035,1742461888831,-510.69525253,0.00033972,21]
[356449036,1742461888841,-544.92,0.00033972,21]
[356449037,1742461888851,-1583.93,0.00033972,21]
[356449038,1742461888861,-269.20617422,0.00033972,21]
[356449039,1742461888871,-855.62,0.00033972,21]
[356449040,1742461888882,-1655.2,0.00033972,21]
[356449041,1742461888893,-2150.53,0.00033972,21]
[356449042,1742461888903,-4522.64,0.00033972,2]
[356449043,1742461888913,-34655.69,0.00033972,21]
[356449044,1742461888924,-1805.88,0.00033972,21]
[356449045,1742461888934,-500.0,0.00033972,21]
[356449046,1742461888944,-500.0,0.00033972,21]
[356449047,1742461888954,-589.1291763,0.00033972,21]
[356449048,1742461888964,-410.81409207,0.00033972,21]
[356449049,1742461888974,-731.26,0.00033972,21]
[356449050,1742461888984,-2192.81,0.00033972,21]
[356449051,1742461888993,-500.0,0.00033972,21]
[356449052,1742461889005,-500.0,0.00033972,21]
[356449053,1742461889016,-500.0,0.00033972,21]
[356449054,1742461889026,-150.37210928,0.00033972,21]
[356449055,1742461889035,-868.49,0.00033972,21]
[356449056,1742461889044,-1390.84,0.00033972,21]
[356449057,1742461889054,-500.0,0.00033972,21]
[356449058,1742461889063,-542.22184815,0.00033972,21]
[356449059,1742461889072,-434.42518587,0.00033972,21]
[356449060,1742461889082,-2716.27,0.00033972,21]
[356449061,1742461889092,-500.0,0.00033972,21]
[356449062,1742461889102,-500.0,0.00033972,21]
[356449063,1742461889111,-500.0,0.00033972,21]
[356449064,1742461889120,-952.77,0.00033972,21]
[356449065,1742461889130,-500.0,0.00033972,21]
[356449066,1742461889140,-500.0,0.00033972,21]
[356449067,1742461889149,-8455.4,0.00033972,21]
[356449068,1742461889159,-658.62,0.00033972,21]
[356449069,1742461889168,-648.51,0.00033972,21]
[356449070,1742461889178,-500.0,0.00033972,21]
[356449071,1742461889187,-1588.05,0.00033972,21]
[356449072,1742461889196,-500.0,0.00033972,21]
[356449073,1742461889206,-500.0,0.00033972,21]
[356449074,1742461889216,-500.0,0.00033972,21]
[356449075,1742461889225,-660.08,0.00033972,21]
[356449076,1742461889235,-500.0,0.00033972,21]
[356449077,1742461889244,-500.0,0.00033972,21]
[356449078,1742461889254,-500.0,0.00033972,21]
[356449079,1742461889263,-721.56,0.00033972,21]
[356449080,1742461889273,-500.0,0.00033972,21]
[356449081,1742461889283,-500.0,0.00033972,21]
[356449082,1742461889292,-21878.22,0.00033972,21]
[356449083,1742461889302,-669.02,0.00033972,21]
[356449084,1742461889311,-1593.2,0.00033972,21]
[356449085,1742461889321,-500.0,0.00033972,21]
[356449086,1742461889331,-500.0,0.00033972,21]
[356449087,1742461889340,-564.60071317,0.00033972,21]
[356449088,1742461889350,-3580.82,0.00033972,21]
[356449089,1742461889359,-500.0,0.00033972,21]
[356449090,1742461889369,-500.0,0.00033972,21]
[356449091,1742461889378,-2807.59,0.00033972,21]
[356449092,1742461889388,-500.0,0.00033972,21]
[356449093,1742461889397,-500.0,0.00033972,21]
[356449094,1742461889407,-6293.25,0.00033972,21]
[356449095,1742461889416,-500.0,0.00033972,21]
[356449096,1742461889426,-500.0,0.00033972,21]
[356449097,1742461889435,-500.0,0.00033972,21]
[356449098,1742461889445,-500.0,0.00033972,21]
[356449099,1742461889455,-1364.21,0.00033972,21]
[356449100,1742461889464,-500.0,0.00033972,21]
[356449101,1742461889474,-500.0,0.00033972,21]
[356449102,1742461889483,-1215.72,0.00033972,21]
[356449103,1742461889493,-505.89,0.00033972,21]
[356449104,1742461889503,-500.0,0.00033972,21]
[356449105,1742461889512,-647.24,0.00033972,21]
[356449106,1742461889521,-1502.29,0.00033972,21]
[356449107,1742461889531,-744.02,0.00033972,21]
[356449108,1742461889540,-326.45160029,0.00033972,21]
[356449109,1742461889549,-500.0,0.00033972,21]
[356449110,1742461889558,-227387.66,0.00033972,7]
[356449111,1742461889568,-589.09,0.00033972,21]
[356449112,1742461889578,-2149.83,0.00033972,21]
[356449113,1742461889587,-854.03,0.00033972,21]
[356449114,1742461889596,-500.0,0.00033972,21]
[356449115,1742461889606,-3705.55,0.00033972,21]
[356449116,1742461889615,-14308.57,0.00033972,21]
[356449117,1742461889624,-2447.05,0.00033972,21]
[356449118,1742461889633,-222.00091008,0.00033972,21]
[356449119,1742461889643,-500.0,0.00033972,21]
[356449120,1742461889652,-573.38,0.00033972,21]
[356449121,1742461889660,-500.0,0.00033972,21]
[356449122,1742461889670,-2318.39,0.00033972,21]
[356449123,1742461889679,-544.54,0.00033972,21]
[356449124,1742461889689,-500.0,0.00033972,21]
[356449125,1742461889699,-531.2,0.00033972,21]
[356449126,1742461889709,-718.94,0.00033972,21]
[356449127,1742461889720,-5997.31,0.00033972,21]
[356449128,1742461889734,-3595.45,0.00033972,21]
[356449129,1742461889743,-500.0,0.00033972,21]
[356449130,1742461889752,-500.0,0.00033972,21]
[356449131,1742461889762,-500.0,0.00033972,21]
[356449132,1742461889773,-301.199932,0.00033972,21]
[356449133,1742461889783,-1787.33,0.00033972,21]
[356449134,1742461889792,-500.0,0.00033972,21]
[356449135,1742461889802,-500.0,0.00033972,21]
[356449136,1742461889814,-634.95,0.00033972,21]
[356449137,1742461889823,-3679.44,0.00033972,21]
[356449138,1742461889833,-500.0,0.00033972,21]
[356449139,1742461889842,-500.0,0.00033972,21]
[356449140,1742461889852,-43618.43,0.00033972,21]
[356449141,1742461889862,-660.82,0.00033972,21]
[356449142,1742461889871,-19529.54,0.00033972,21]
[356449143,1742461889880,-500.0,0.00033972,21]
[356449144,1742461889889,-1279.17,0.00033972,21]
[356449145,1742461889899,-891.51,0.00033972,21]
[356449146,1742461889908,-544.25,0.00033972,21]
[356449147,1742461889918,-500.0,0.00033972,21]
[356449148,1742461889927,-500.0,0.00033972,21]
[356449149,1742461889937,-635.21,0.00033972,21]
[356449150,1742461889947,-795.1,0.00033972,21]
[356449151,1742461889955,-500.0,0.00033972,21]
[356449152,1742461889967,-500.0,0.00033972,21]
[356449153,1742461889976,-500.0,0.00033972,21]
[356449154,1742461889985,-13088.35,0.00033972,21]
[356449155,1742461889995,-1007.56,0.00033972,21]
[356449156,1742461890005,-500.0,0.00033972,21]
[356449157,1742461890014,-504.79,0.00033972,21]
[356449158,1742461890024,-500.0,0.00033972,21]
[356449159,1742461890033,-636.24,0.00033972,21]
[356449160,1742461890043,-500.0,0.00033972,21]
[356449161,1742461890052,-500.0,0.00033972,21]
[356449162,1742461890062,-880.55,0.00033972,21]
[356449163,1742461890072,-500.0,0.00033972,21]
[356449164,1742461890082,-12043.91,0.00033972,21]
[356449165,1742461890091,-500.0,0.00033972,21]
[356449166,1742461890101,-2711.16,0.00033972,21]
[356449167,1742461890110,-500.0,0.00033972,21]
[356449168,1742461890120,-1224.78,0.00033972,21]
[356449169,1742461890129,-500.0,0.00033972,21]
[356449170,1742461890139,-10705.08,0.00033972,21]
[356449171,1742461890148,-500.0,0.00033972,21]
[356449172,1742461890157,-500.0,0.00033972,21]
[356449173,1742461890167,-306.0,0.00033973,30]
[356449174,1742461890176,-154.6538096,0.00033973,30]
[356449175,1742461890185,-155.7972927,0.00033973,30]
[356449176,1742461890194,-155.7972927,0.00033973,30]
[356449177,1742461890203,-573.2538469,0.00033973,30]
[356449178,1742461890213,-155.7972927,0.00033973,30]
[356449179,1742461890223,-153.0,0.00033973,30]
[356449180,1742461890232,-155.7972927,0.00033973,30]
[356449181,1742461890242,-153.0,0.00033973,30]
[356449182,1742461890251,-155.7972927,0.00033973,30]
[356449183,1742461890261,-311.0657774,0.00033973,30]
[356449184,1742461890270,-155.7972927,0.00033973,30]
[356449185,1742461890279,-155.7972927,0.00033973,30]
[356449186,1742461890288,-155.5706607,0.00033973,30]
[356449187,1742461890298,-961.71179581,0.00033989,2]
[356449188,1742461890308,-555.29,0.00034,7]
[356449189,1742461890317,-351.88619533,0.00034021,5]
[356449190,1742461890326,-239.76619332,0.00034021,5]
[356449191,1742461890336,-423.13446335,0.00034061,7]
[356449192,1742461890345,-207.42755088,0.00034072,7]
[356449193,1742461890354,-166.0,0.00034072,7]
[356449194,1742461890364,-166.0,0.00034072,7]
[356449195,1742461890373,-162.89753949,0.00034072,7]
[356449196,1742461890382,-354.0,0.00034072,7]
[356449197,1742461890391,-354.0,0.00034072,7]
[356449198,1742461890400,-354.0,0.00034072,7]
[356449199,1742461890410,-354.0,0.00034072,7]
[356449200,1742461890419,-354.0,0.00034072,7]
[356449201,1742461890428,-354.0,0.00034072,7]
[356449202,1742461890438,-354.0,0.00034072,7]
[356449203,1742461890447,-317.0,0.00034072,7]
[356449204,1742461890457,-354.0,0.00034072,7]
[356449205,1742461890467,-317.0,0.00034072,7]
[356449206,1742461890477,-354.0,0.00034072,7]
[356449207,1742461890486,-317.0,0.00034072,7]
[356449208,1742461890496,-354.0,0.00034072,7]
[356449209,1742461890505,-317.0,0.00034072,7]
[356449210,1742461890515,-354.0,0.00034072,7]
[356449211,1742461890525,-317.0,0.00034072,7]
[356449212,1742461890534,-317.0,0.00034072,7]
[356449213,1742461890543,-317.0,0.00034072,7]
[356449214,1742461890553,-354.0,0.00034072,7]
[356449215,1742461890562,-317.0,0.00034072,7]
[356449216,1742461890571,-354.0,0.00034072,7]
[356449217,1742461890580,-317.0,0.00034072,7]
[356449218,1742461890589,-354.0,0.00034072,7]
[356449219,1742461890599,-317.0,0.00034072,7]
[356449220,1742461890608,-354.0,0.00034072,7]
[356449221,1742461890618,-317.0,0.00034072,7]
[356449222,1742461890627,-373.78498515,0.00034072,7]
[356449223,1742461890637,-317.0,0.00034072,7]
[356449224,1742461890646,-317.0,0.00034072,7]
[356449225,1742461890656,-318.08653686,0.00034072,7]
[356449226,1742461890665,-800.0,0.0003411,2]
[356449227,1742461890674,-800.0,0.00034124,2]
[356449228,1742461890683,-440.2,0.00034226,3]
[356449229,1742461890692,-33441.22,0.00034236,3]
[356449230,1742461890702,-500.0,0.00034246,21]
[356449231,1742461890712,-500.0,0.00034246,21]
[356449232,1742461890722,-500.0,0.00034246,21]
[356449233,1742461890735,-500.0,0.00034246,21]
[356449234,1742461890743,-500.0,0.00034246,21]
[356449235,1742461890753,-246.92903887,0.00034246,21]
[356449236,1742461890762,-500.0,0.00034246,21]
[356449237,1742461890772,-500.0,0.00034246,21]
[356449238,1742461890781,-500.0,0.00034246,21]
[356449239,1742461890790,-500.0,0.00034246,21]
[356449240,1742461890799,-500.0,0.00034246,21]
[356449241,1742461890809,-500.0,0.00034246,21]
[356449242,1742461890819,-500.0,0.00034246,21]
[356449243,1742461890828,-278.27882609,0.00034246,21]
[356449244,1742461890837,-500.0,0.00034246,21]
[356449245,1742461890847,-695.15,0.00034246,21]
[356449246,1742461890856,-500.0,0.00034246,21]
[356449247,1742461890865,-500.0,0.00034246,21]
[356449248,1742461890874,-500.0,0.00034246,21]
[356449249,1742461890883,-500.0,0.00034246,21]
[356449250,1742461890892,-1428.27,0.00034246,21]
[356449251,1742461890902,-500.0,0.00034246,21]
[356449252,1742461890911,-500.0,0.00034246,21]
[356449253,1742461890920,-500.0,0.00034246,21]
[356449254,1742461890929,-500.0,0.00034246,21]
[356449255,1742461890938,-500.0,0.00034246,21]
[356449256,1742461890947,-634.53,0.00034246,21]
[356449257,1742461890956,-500.0,0.00034246,21]
[356449258,1742461890966,-1404.91,0.00034246,21]
[356449259,1742461890974,-500.0,0.00034246,21]
[356449260,1742461890984,-500.0,0.00034246,21]
[356449261,1742461890992,-566.83,0.00034246,21]
[356449262,1742461891002,-500.0,0.00034246,21]
[356449263,1742461891011,-1610.07,0.00034246,21]
[356449264,1742461891020,-2103.61,0.00034246,21]
[356449265,1742461891029,-500.0,0.00034246,21]
[356449266,1742461891038,-500.0,0.00034246,21]
[356449267,1742461891047,-500.0,0.00034246,21]
[356449268,1742461891056,-1432.87,0.00034246,21]
[356449269,1742461891066,-1129.64,0.00034246,21]
[356449270,1742461891076,-500.0,0.00034246,21]
[356449271,1742461891085,-1387.5,0.00034246,21]
[356449272,1742461891095,-500.0,0.00034246,21]
[356449273,1742461891105,-500.0,0.00034246,21]
[356449274,1742461891115,-500.0,0.00034246,21]
[356449275,1742461891124,-500.0,0.00034246,21]
[356449276,1742461891134,-500.0,0.00034246,21]
[356449277,1742461891143,-500.0,0.00034246,21]
[356449278,1742461891153,-910.96,0.00034246,21]
[356449279,1742461891162,-500.0,0.00034246,21]
[356449280,1742461891172,-500.0,0.00034246,21]
[356449281,1742461891181,-500.0,0.00034246,21]
[356449282,1742461891191,-500.0,0.00034246,21]
[356449283,1742461891202,-213.16660974,0.00034246,21]
[356449284,1742461891211,-500.0,0.00034246,21]
[356449285,1742461891221,-500.0,0.00034246,21]
[356449286,1742461891230,-500.0,0.00034246,21]
[356449287,1742461891239,-619.69,0.00034246,21]
[356449288,1742461891249,-500.0,0.00034246,21]
[356449289,1742461891258,-774.65,0.00034246,21]
[356449290,1742461891268,-500.0,0.00034246,21]
[356449291,1742461891277,-500.0,0.00034246,21]
[356449292,1742461891287,-500.0,0.00034246,21]
[356449293,1742461891297,-500.0,0.00034246,120]
[356449294,1742461891307,-500.0,0.00034246,21]
[356449295,1742461891316,-500.0,0.00034246,21]
[356449296,1742461891326,-500.0,0.00034246,21]
[356449297,1742461891335,-500.0,0.00034246,21]
[356449298,1742461891345,-646.82,0.00034246,21]
[356449299,1742461891354,-500.0,0.00034246,21]
[356449300,1742461891364,-500.0,0.00034246,21]
[356449301,1742461891373,-668.27,0.00034246,21]
[356449302,1742461891382,-2316.69,0.00034246,21]
[356449303,1742461891560,-500.0,0.00034246,21]
[356449304,1742461891570,-500.0,0.00034246,21]
[356449305,1742461891580,-990.92,0.00034246,21]
[356449306,1742461891590,-1090.13,0.00034246,21]
[356449307,1742461891599,-500.0,0.00034246,21]
[356449308,1742461891609,-1362.39,0.00034246,21]
[356449309,1742461891618,-1927.43,0.00034246,21]
[356449310,1742461891628,-500.0,0.00034246,21]
[356449311,1742461891638,-500.0,0.00034246,7]
[356449312,1742461891647,-500.0,0.00034246,21]
[356449313,1742461891657,-500.0,0.00034246,21]
[356449314,1742461891667,-500.0,0.00034246,21]
[356449315,1742461891676,-500.0,0.00034246,21]
[356449316,1742461891686,-500.0,0.00034246,21]
[356449317,1742461891695,-780.4,0.00034246,21]
[356449318,1742461891705,-500.0,0.00034246,21]
[356449319,1742461891715,-625.57569321,0.00034246,21]
[356449320,1742461891725,-500.0,0.00034246,21]
[356449321,1742461891739,-500.0,0.00034246,21]
[356449322,1742461891748,-500.0,0.00034246,21]
[356449323,1742461891758,-500.0,0.00034246,21]
[356449324,1742461891767,-500.0,0.00034246,21]
[356449325,1742461891778,-500.0,0.00034246,21]
[356449326,1742461891787,-500.0,0.00034246,21]
[356449327,1742461891797,-1563.76,0.00034246,21]
[356449328,1742461891807,-686.6,0.00034246,21]
[356449329,1742461891817,-648.72332674,0.00034246,21]
[356449330,1742461891826,-500.0,0.00034246,2]
[356449331,1742461891835,-500.0,0.00034246,21]
[356449332,1742461891845,-500.0,0.00034246,21]
[356449333,1742461891854,-500.0,0.00034246,21]
[356449334,1742461891864,-500.0,0.00034246,21]
[356449335,1742461891873,-500.0,0.00034246,21]
[356449336,1742461891883,-500.0,0.00034246,21]
[356449337,1742461891892,-1655.01,0.00034246,21]
[356449338,1742461891901,-500.0,0.00034246,21]
[356449339,1742461891911,-500.0,0.00034246,21]
[356449340,1742461891920,-500.0,0.00034246,21]
[356449341,1742461891930,-540.01,0.00034246,21]
[356449342,1742461891939,-500.0,0.00034246,14]
[356449343,1742461891949,-500.0,0.00034246,21]
[356449344,1742461891958,-529.79,0.00034246,21]
[356449345,1742461891968,-552.74,0.00034246,21]
[356449346,1742461891978,-792.16,0.00034246,21]
[356449347,1742461891988,-500.0,0.00034246,21]
[356449348,1742461891997,-500.0,0.00034246,21]
[356449349,1742461892007,-1685.63,0.00034246,21]
[356449350,1742461892016,-592.50406156,0.00034246,21]
[356449351,1742461892026,-583.69,0.00034246,21]
[356449352,1742461892035,-500.0,0.00034246,21]
[356449353,1742461892045,-1092.59,0.00034246,21]
[356449354,1742461892055,-649.31,0.00034246,21]
[356449355,1742461892064,-500.0,0.00034246,21]
[356449356,1742461892074,-500.0,0.00034246,21]
[356449357,1742461892083,-500.0,0.00034246,21]
[356449358,1742461892093,-500.0,0.00034246,21]
[356449359,1742461892102,-1920.45,0.00034246,21]
[356449360,1742461892112,-575.54,0.00034246,21]
[356449361,1742461892122,-533.57,0.00034246,21]
[356449362,1742461892132,-500.0,0.00034246,21]
[356449363,1742461892141,-500.0,0.00034246,21]
[356449364,1742461892151,-1325.8,0.00034246,21]
[356449365,1742461892162,-500.0,0.00034246,21]
[356449366,1742461892171,-500.0,0.00034246,21]
[356449367,1742461892180,-500.0,0.00034246,21]
[356449368,1742461892190,-500.0,0.00034246,21]
[356449369,1742461892199,-1482.65,0.00034246,21]
[356449370,1742461892208,-500.0,0.00034246,21]
[356449371,1742461892219,-500.0,0.00034246,21]
[356449372,1742461892229,-500.0,0.00034246,21]
[356449373,1742461892239,-500.0,0.00034246,21]
[356449374,1742461892249,-1002.11,0.00034246,21]
[356449375,1742461892258,-500.0,0.00034246,21]
[356449376,1742461892268,-500.0,0.00034246,21]
[356449377,1742461892278,-500.0,0.00034246,21]
[356449378,1742461892288,-153.92487134,0.00034246,21]
[356449379,1742461892297,-195.90660556,0.00034246,21]
[356449380,1742461892307,-500.0,0.00034246,21]
[356449381,1742461892317,-1277.35,0.00034246,21]
[356449382,1742461892327,-500.0,0.00034246,21]
[356449383,1742461892338,-612.1,0.00034246,21]
[356449384,1742461892347,-729.98,0.00034246,21]
[356449385,1742461892357,-500.0,0.00034246,21]
[356449386,1742461892367,-761.87,0.00034246,21]
[356449387,1742461892376,-536.94,0.00034246,21]
[356449388,1742461892386,-584.07,0.00034246,21]
[356449389,1742461892395,-549.60725663,0.00034246,21]
[356449390,1742461892405,-662.53,0.00034246,21]
[356449391,1742461892415,-598.46980561,0.00034246,21]
[356449392,1742461892424,-1192.63,0.00034246,21]
[356449393,1742461892433,-500.0,0.00034246,21]
[356449394,1742461892443,-974.22,0.00034246,21]
[356449395,1742461892453,-691.33,0.00034246,21]
[356449396,1742461892464,-500.0,0.00034246,21]
[356449397,1742461892474,-500.0,0.00034246,21]
[356449398,1742461892483,-500.0,0.00034246,21]
[356449399,1742461892493,-500.0,0.00034246,21]
[356449400,1742461892502,-614.26,0.00034246,21]